bitfinex/quotes_ETHUSD_20240817
["timestamp","ask_amount","ask_price","bid_price","bid_amount"]
[1723913491920,0.1283966,2622.4,2622.3,5.72016]
[1723913492511,0.1283966,2622.4,2622.3,6.27016]
[1723913495881,0.1283966,2622.4,2622.3,9.13024]
[1723913496072,0.1283966,2622.4,2622.3,6.27016]
[1723913497728,0.1283966,2622.4,2622.3,9.13024]
[1723913498822,0.1283966,2622.4,2622.3,6.27016]
[1723913502015,0.1283966,2622.4,2622.3,3.41008]
[1723913502213,0.1283966,2622.4,2622.3,6.27016]
[1723913503385,0.1283966,2622.4,2622.3,17.57044]
[1723913506191,0.1283966,2622.4,2622.3,12.42116]
[1723913506392,0.1283966,2622.4,2622.3,9.27016]
[1723913510318,6.6e-06,2622.4,2622.3,20.43052]
[1723913510488,3.30207665,2623.0,2622.9,5.71886]
[1723913510684,3.30207665,2623.0,2622.9,3.55]
[1723913510912,3.30207665,2623.0,2622.3,3.55]
[1723913510913,5.72397665,2623.0,2622.8,2.85953]
[1723913511110,5.72397665,2623.0,2622.8,2.85945]
[1723913511343,3.30207665,2623.0,2622.9,5.71886]
[1723913512109,3.30207665,2623.0,2622.9,2.85943]
[1723913512315,3.30207665,2623.0,2622.9,5.71886]
[1723913514062,3.30207665,2623.0,2622.9,16.72692]
[1723913514261,3.30207665,2623.0,2622.9,14.41749]
[1723913514414,3.30207665,2623.0,2622.9,17.27692]
[1723913516942,3.30207665,2623.0,2622.9,20.42792]
[1723913517954,6.65e-06,2623.0,2622.9,23.28735]
[1723913518286,5.11e-06,2623.3,2623.2,16.5457]
[1723913518486,2.3335,2624.9,2624.8,2.85736]
[1723913518698,2.3335,2624.9,2624.7,2.85745]
[1723913518896,2.3335,2624.9,2624.1,3.0]
[1723913518897,2.3335,2624.6,2624.1,3.0]
[1723913519192,0.24618966,2624.9,2624.5,2.85762]
[1723913519479,5.3190666,2625.0,2624.3,2.8578]
[1723913519718,5.3190666,2625.0,2624.3,2.85788]
[1723913519719,2.3335,2624.7,2624.3,2.85788]
[1723913520061,5.19102,2624.7,2624.1,5.71612]
[1723913520293,5.19102,2624.7,2624.1,5.7161]
[1723913520294,0.519102,2624.6,2624.1,5.7161]
[1723913520504,2.85807,2624.2,2623.5,2.85872]
[1723913520658,2.85807,2624.2,2623.1,2.85918]
[1723913520875,2.85807,2624.2,2623.7,2.85849]
[1723913521092,0.519157,2624.1,2623.7,5.71698]
[1723913521302,2.3335,2624.3,2623.8,2.85844]
[1723913521598,2.3335,2624.3,2623.5,2.8587]
[1723913521599,5.1914,2624.3,2623.5,2.8587]
[1723913521810,2.85816,2624.1,2623.5,5.71741]
[1723913521963,2.85816,2624.1,2623.5,2.8587]
[1723913522160,0.6521174,2624.0,2623.5,2.8587]
[1723913522361,2.4208,2623.9,2623.5,2.8587]
[1723913522671,2.4208,2623.9,2623.4,2.85885]
[1723913523223,2.4208,2624.7,2623.4,2.2678]
[1723913523503,2.4208,2624.7,2624.4,2.85773]
[1723913523718,0.24208,2624.6,2624.3,5.71567]
[1723913524009,0.24208,2624.6,2624.3,2.85783]
[1723913524170,0.24208,2624.6,2624.5,5.71536]
[1723913524377,2.4208,2624.7,2624.6,2.85757]
[1723913524760,2.4208,2624.7,2624.3,2.85789]
[1723913524955,0.24208,2624.6,2624.3,2.85789]
[1723913525374,0.24208,2624.6,2624.2,2.85795]
[1723913525573,2.4208,2624.7,2624.2,5.7159]
[1723913525983,2.4208,2624.7,2624.3,2.85783]
[1723913526651,0.1283966,2625.0,2624.3,2.2678]
[1723913526945,0.1283966,2625.0,2624.8,2.85735]
[1723913527232,0.1283966,2625.0,2624.4,0.55]
[1723913527233,0.1283966,2625.0,2624.9,2.85725]
[1723913528348,0.1283966,2625.0,2624.8,2.85727]
[1723913528492,3.35353535,2626.0,2625.9,5.12396]
[1723913528701,1.97872662,2627.2,2625.9,5.12396]
[1723913528702,9e-06,2627.5,2627.0,1.1625]
[1723913529024,9e-06,2627.5,2627.4,5.70906]
[1723913529222,9e-06,2627.5,2627.0,1.1625]
[1723913529223,2.8531,2628.8,2627.0,2.8549]
[1723913529394,2.77021727,2630.8,2630.7,2.99192544]
[1723913529596,2.77021727,2630.8,2627.0,2.8549]
[1723913529597,0.1283966,2632.9,2631.3,0.05]
[1723913529839,0.0283966,2632.9,2630.1,0.05]
[1723913530136,0.0283966,2632.9,2630.6,2.85105]
[1723913530137,0.7,2632.6,2630.6,2.85105]
[1723913530340,4.1873966,2632.9,2630.0,2.2678]
[1723913530341,0.0283966,2632.9,2631.7,2.84978]
[1723913530546,0.0283966,2632.9,2631.2,4.159]
[1723913530832,0.0283966,2632.9,2630.7,3.55]
[1723913530833,0.0283966,2632.9,2631.5,2.84998]
[1723913531043,0.0283966,2632.9,2631.6,3.55]
[1723913531248,0.31608326,2632.9,2631.5,2.85007]
[1723913531431,0.31608326,2632.9,2631.2,2.8503]
[1723913531432,4.159,2632.5,2631.2,5.8503]
[1723913531592,4.159,2632.5,2630.7,2.85094]
[1723913531593,2.84943,2632.1,2630.7,2.85094]
[1723913531792,3.82159,2632.4,2630.8,3.55]
[1723913531998,0.798059,2632.3,2630.8,3.55]
[1723913532236,0.7,2632.1,2630.4,2.85122]
[1723913532445,2.85001,2631.6,2630.5,3.0]
[1723913532643,0.569991,2631.5,2630.7,2.85091]
[1723913532793,0.569991,2631.5,2630.4,2.85122]
[1723913532794,2.84987,2631.7,2630.4,2.85122]
[1723913532998,0.7,2631.8,2630.2,2.85147]
[1723913533208,4.287,2632.0,2630.0,2.85169]
[1723913533209,2.85031,2631.3,2630.0,2.85169]
[1723913533455,0.7,2631.5,2629.6,2.85206]
[1723913533456,0.7,2631.1,2629.6,2.85206]
[1723913533595,0.7,2631.1,2629.7,2.85203]
[1723913533596,2.85064,2631.0,2629.7,2.85203]
[1723913533828,3.205894,2630.9,2629.7,2.85193]
[1723913534003,0.7,2631.2,2629.7,2.85193]
[1723913534194,2.85109,2630.6,2629.7,2.85193]
[1723913534446,0.7,2631.2,2629.4,2.85227]
[1723913534611,2.85118,2630.5,2629.6,2.85213]
[1723913534810,3.7,2631.2,2629.7,2.85193]
[1723913534811,2.85095,2630.7,2629.7,2.85193]
[1723913535016,2.85095,2630.7,2629.8,2.85192]
[1723913535214,2.85095,2630.7,2629.5,2.85224]
[1723913535215,2.85128,2630.4,2629.5,2.85224]
[1723913535436,2.85185,2629.9,2628.7,2.85303]
[1723913535747,2.85185,2629.9,2628.0,2.85386]
[1723913535748,2.85151,2630.2,2629.0,2.85276]
[1723913536042,2.85174,2630.0,2629.0,2.85276]
[1723913536208,2.85174,2630.0,2629.1,2.85267]
[1723913536554,0.285174,2629.9,2629.3,2.85245]
[1723913536733,2.85096,2630.7,2629.0,2.85279]
[1723913536734,2.4988,2631.6,2629.0,2.445]
[1723913537039,2.85064,2631.0,2630.2,2.85143]
[1723913537200,2.85041,2631.2,2630.4,2.85127]
[1723913537398,0.285041,2631.1,2630.4,2.85127]
[1723913537643,3.135581,2631.1,2630.3,2.85137]
[1723913537836,2.85031,2631.3,2630.4,2.85126]
[1723913538080,2.8501,2631.5,2630.4,2.85126]
[1723913538081,3.085451,2631.2,2630.4,2.85126]
[1723913538348,2.85042,2631.2,2630.4,2.85126]
[1723913538720,2.8502,2631.4,2630.2,2.85147]
[1723913539043,2.8502,2631.4,2630.4,2.85124]
[1723913539044,2.85041,2631.2,2630.4,2.85124]
[1723913539741,2.85052,2631.1,2630.4,2.85124]
[1723913539895,2.85052,2631.1,2630.3,0.55]
[1723913540101,2.85052,2631.1,2630.3,3.40137]
[1723913540326,3.135682,2631.0,2630.3,3.40137]
[1723913540643,0.28502,2631.3,2629.7,3.0]
[1723913540851,0.7,2631.1,2629.5,2.85216]
[1723913540996,0.7,2631.1,2628.4,2.85341]
[1723913540997,2.8516,2630.1,2629.3,2.85245]
[1723913541330,2.80171,2630.0,2629.3,2.85245]
[1723913541526,0.280171,2629.9,2629.1,2.85264]
[1723913541726,0.280171,2629.9,2628.6,2.85313]
[1723913541727,2.85245,2629.4,2628.6,2.85313]
[1723913541913,0.285245,2629.3,2628.3,2.85345]
[1723913542110,2.85203,2629.7,2628.9,2.85289]
[1723913542441,2.85236,2629.4,2628.4,2.85337]
[1723913542743,2.85236,2629.4,2628.7,2.85312]
[1723913542946,2.85215,2629.6,2628.7,2.85312]
[1723913542947,2.85228,2629.5,2628.7,2.85312]
[1723913543102,0.570443,2629.4,2628.8,2.853]
[1723913544018,2.85195,2629.8,2629.0,2.85271]
[1723913544233,0.285195,2629.8,2628.7,2.85309]
[1723913544436,2.85201,2629.8,2628.6,2.85321]
[1723913544633,2.85249,2629.3,2628.4,2.85343]
[1723913544872,2.85277,2629.1,2628.4,2.85343]
[1723913545076,3.137251,2629.7,2629.0,2.85279]
[1723913545238,2.85214,2629.6,2628.8,2.85293]
[1723913545442,3.1658651,2629.6,2628.9,2.85288]
[1723913545641,2.85225,2629.5,2628.8,2.85293]
[1723913545843,0.31659751,2629.4,2628.8,2.85293]
[1723913546061,3.16895751,2629.4,2628.5,2.85332]
[1723913546235,2.85266,2629.2,2628.4,2.85344]
[1723913546577,2.85269,2629.1,2628.4,2.85344]
[1723913547181,3.0,2629.7,2628.8,2.85301]
[1723913547385,2.85253,2629.3,2628.6,2.85317]
[1723913547748,5.70466,2629.5,2628.7,2.85305]
[1723913548065,2.85232,2629.5,2628.8,2.85299]
[1723913548278,2.85232,2629.5,2628.6,2.85317]
[1723913548582,2.85249,2629.3,2628.6,2.85317]
[1723913548752,2.85232,2629.5,2628.6,2.85317]
[1723913549376,3.15224,2629.6,2628.6,2.85317]
[1723913549561,5.70448,2629.6,2628.8,2.85291]
[1723913549764,2.85246,2629.4,2628.6,2.85317]
[1723913549970,3.137716,2629.3,2628.6,2.85317]
[1723913550551,2.85269,2629.1,2628.4,2.85342]
[1723913550768,2.85287,2629.0,2628.2,2.85358]
[1723913551007,2.85287,2629.0,2628.0,2.85383]
[1723913551008,2.85322,2628.7,2628.0,2.85383]
[1723913551177,2.85322,2628.7,2627.8,2.85404]
[1723913551178,2.85342,2628.5,2627.8,2.85404]
[1723913551538,2.85342,2628.5,2627.9,2.85398]
[1723913551734,2.85342,2628.5,2627.8,2.85401]
[1723913552400,2.85295,2628.9,2628.0,2.85387]
[1723913552609,2.85295,2628.9,2628.2,2.85359]
[1723913552763,2.85314,2628.7,2628.0,2.8538]
[1723913552958,2.85314,2628.7,2628.0,2.85379]
[1723913553203,0.3372645,2628.6,2628.1,2.85376]
[1723913554292,5.15058804,2628.9,2628.1,2.85366]
[1723913554575,5.19439,2629.5,2628.7,2.85308]
[1723913554787,2.85238,2629.4,2628.7,2.85308]
[1723913554990,0.804677,2629.3,2628.7,2.85304]
[1723913555188,5.19439,2629.5,2628.9,2.8529]
[1723913555392,0.519439,2629.4,2628.9,2.8529]
[1723913556102,5.60287,2630.0,2629.3,2.85247]
[1723913556409,5.29866,2630.0,2629.3,2.85239]
[1723913556711,5.29866,2630.0,2629.5,2.85224]
[1723913556712,2.4469,2630.0,2629.5,2.85224]
[1723913557058,5.29861,2630.0,2629.3,5.70477]
[1723913557366,5.29862,2630.0,2629.3,2.85238]
[1723913558066,2.4469,2630.0,2629.4,2.85235]
[1723913558291,0.815023,2629.9,2629.4,2.85235]
[1723913558503,0.815023,2629.9,2629.5,2.85223]
[1723913558713,2.85177,2630.0,2629.3,2.85238]
[1723913558916,2.85177,2630.0,2629.3,5.70478]
[1723913559209,2.85209,2629.7,2629.1,2.85264]
[1723913559375,2.85215,2629.6,2629.0,2.85272]
[1723913559564,5.29913,2629.6,2628.7,2.85306]
[1723913559794,2.85243,2629.4,2628.7,2.85306]
[1723913559993,2.4469,2629.6,2628.5,2.85332]
[1723913559994,2.8527,2629.1,2628.5,2.85332]
[1723913561031,2.8529,2628.9,2628.3,2.85351]
[1723913561232,2.85302,2628.8,2628.1,2.85368]
[1723913561415,0.28529,2628.8,2628.3,2.85346]
[1723913561729,2.85301,2628.8,2628.2,2.85365]
[1723913561928,2.85285,2629.0,2628.2,2.85358]
[1723913562083,0.285285,2628.9,2628.2,2.85358]
[1723913562279,0.285285,2628.9,2628.4,2.85337]
[1723913562511,2.8525,2629.3,2628.6,2.8532]
[1723913562822,2.85265,2629.2,2628.6,2.8532]
[1723913563223,3.4807156,2629.5,2627.7,3.0]
[1723913563569,3.4807156,2629.5,2628.8,2.85301]
[1723913563570,2.85237,2629.4,2628.8,2.85301]
[1723913563681,2.85237,2629.4,2628.7,2.85306]
[1723913563883,2.85248,2629.3,2628.7,2.85306]
[1723913564078,0.285248,2629.2,2628.7,2.85306]
[1723913564325,0.285248,2629.2,2628.7,2.85305]
[1723913564478,6.3330656,2629.5,2628.7,2.85305]
[1723913564479,3.4807156,2629.5,2628.7,2.85305]
[1723913564679,3.4807156,2629.5,2628.9,2.85282]
[1723913565010,2.8525,2629.3,2628.7,2.85306]
[1723913565181,2.85269,2629.1,2628.5,2.85327]
[1723913565386,2.85269,2629.1,2628.5,5.70654]
[1723913565581,2.85269,2629.1,2628.6,2.85322]
[1723913566379,0.34452616,2629.2,2628.7,2.85311]
[1723913566584,2.85258,2629.2,2628.7,2.85311]
[1723913567090,5.70523,2629.2,2628.5,5.70653]
[1723913567326,2.85281,2629.0,2628.5,2.85326]
[1723913567527,0.570523,2629.1,2628.5,5.70653]
[1723913567836,2.85258,2629.2,2628.6,2.85319]
[1723913568048,0.285258,2629.1,2628.7,2.85311]
[1723913568203,2.85242,2629.4,2628.7,2.85311]
[1723913568405,2.85253,2629.3,2628.7,2.85311]
[1723913568713,0.570495,2629.2,2628.7,2.85311]
[1723913569103,2.85242,2629.4,2628.8,2.85295]
[1723913569505,2.85242,2629.4,2628.9,2.85288]
[1723913569901,2.85242,2629.4,2628.3,2.85352]
[1723913569902,2.4469,2629.6,2628.5,2.85327]
[1723913570108,2.4469,2629.6,2628.6,2.85321]
[1723913570109,2.85264,2629.2,2628.6,2.85321]
[1723913570310,2.85242,2629.4,2628.1,2.85375]
[1723913570541,2.85242,2629.4,2628.8,2.85293]
[1723913570740,0.285242,2629.3,2628.8,5.70588]
[1723913571306,0.285242,2629.3,2628.8,2.85293]
[1723913571505,0.285242,2629.3,2628.8,5.70588]
[1723913571742,0.285242,2629.3,2628.9,2.85287]
[1723913571928,2.85227,2629.5,2628.9,2.85287]
[1723913572347,0.285196,2629.7,2629.3,2.85243]
[1723913572557,2.85198,2629.8,2629.2,2.85253]
[1723913572755,0.285198,2629.7,2629.2,2.85253]
[1723913573308,0.285198,2629.7,2629.3,2.8524]
[1723913573719,0.285198,2629.7,2629.1,2.85259]
[1723913574022,0.285198,2629.7,2629.2,2.85257]
[1723913574219,2.85221,2629.6,2629.0,2.85278]
[1723913574604,5.7044,2629.6,2629.0,2.85278]
[1723913574816,2.8522,2629.6,2629.0,2.85278]
[1723913575021,2.8522,2629.6,2629.0,2.85273]
[1723913575837,5.7044,2629.6,2629.0,2.85273]
[1723913576072,3.42269,2629.5,2629.0,2.85273]
[1723913576453,2.85253,2629.3,2628.6,3.65386649]
[1723913576653,0.57044,2629.5,2628.6,2.85315]
[1723913576860,2.85262,2629.2,2628.6,2.85315]
[1723913577027,2.85279,2629.0,2628.5,2.8533]
[1723913577229,2.85279,2629.0,2628.4,2.85335]
[1723913577454,5.30859,2629.2,2628.2,6.50790649]
[1723913577629,5.30859,2629.2,2628.2,2.85359]
[1723913577630,5.70612,2628.8,2628.2,2.85359]
[1723913577829,2.85302,2628.8,2628.2,2.85359]
[1723913578330,2.85302,2628.8,2628.2,5.70719]
[1723913578599,2.8532,2628.7,2628.0,2.85378]
[1723913578769,0.285302,2628.7,2628.1,1.32388368]
[1723913578926,0.285302,2628.7,2628.2,2.85359]
[1723913579528,0.285302,2628.7,2628.0,0.80071649]
[1723913579728,8.16127,2629.2,2628.5,2.85328]
[1723913579973,5.30862,2629.2,2628.7,2.85311]
[1723913580152,24.99,2629.5,2629.0,2.85273]
[1723913580327,27.8422,2629.6,2629.0,5.70546]
[1723913580529,27.8422,2629.6,2629.0,2.85273]
[1723913580530,0.53082,2629.5,2629.0,2.85273]
[1723913580746,2.85238,2629.4,2628.8,2.8529]
[1723913580940,2.85253,2629.3,2628.7,2.85303]
[1723913581146,2.8527,2629.1,2628.5,3.65398649]
[1723913581359,2.85285,2629.0,2628.5,5.70654]
[1723913581570,3.138004,2629.1,2628.5,2.85327]
[1723913581872,2.85281,2629.0,2628.5,2.85327]
[1723913582075,3.4518814,2629.0,2628.5,2.85327]
[1723913582429,3.4518814,2629.0,2628.5,2.85332]
[1723913582430,0.5990714,2629.0,2628.5,2.85332]
[1723913582579,2.85293,2628.9,2628.3,2.85349]
[1723913582776,2.85253,2629.3,2628.6,2.85316]
[1723913583007,2.85264,2629.2,2628.6,2.85315]
[1723913583167,2.85272,2629.1,2628.6,2.85315]
[1723913583567,2.85279,2629.0,2628.3,2.85354]
[1723913583806,2.85297,2628.9,2628.3,5.70703]
[1723913583972,2.85274,2629.1,2628.6,2.85322]
[1723913584309,2.85274,2629.1,2628.4,2.85342]
[1723913584310,2.85285,2629.0,2628.4,2.85342]
[1723913584530,2.8529,2628.9,2628.4,2.85342]
[1723913584706,2.85308,2628.8,2628.0,2.85381]
[1723913585016,2.85323,2628.6,2628.1,2.85377]
[1723913585571,2.85323,2628.6,2628.0,2.85381]
[1723913585828,0.518808,2628.7,2628.0,2.85381]
[1723913586496,2.85323,2628.6,2628.0,2.8538]
[1723913586694,0.3372038,2628.5,2628.0,2.8538]
[1723913586914,0.3372038,2628.5,2628.0,5.70762]
[1723913587087,0.3372038,2628.5,2628.0,5.70761]
[1723913587288,2.85346,2628.4,2627.5,3.0]
[1723913587482,24.99,2628.4,2628.0,2.85388]
[1723913587729,24.99,2628.4,2628.0,2.85382]
[1723913588397,24.99,2628.4,2627.8,2.85402]
[1723913588398,2.85361,2628.3,2627.7,2.85418]
[1723913588602,2.53272038,2628.3,2627.5,3.0]
[1723913588785,2.53272038,2628.3,2627.4,2.85445]
[1723913588786,2.85393,2628.0,2627.4,2.85445]
[1723913588986,2.299,2628.1,2627.4,2.85445]
[1723913589542,2.85399,2627.9,2627.4,2.85445]
[1723913589932,2.85399,2627.9,2627.3,2.85462]
[1723913590115,3.654673,2627.9,2627.3,2.85462]
[1723913590315,0.800683,2627.9,2627.1,2.85483]
[1723913590518,2.299,2628.1,2627.1,2.85483]
[1723913590519,2.85432,2627.6,2627.1,2.85483]
[1723913590832,27.84432,2627.6,2627.1,2.85483]
[1723913591019,24.99,2627.6,2627.1,2.85483]
[1723913591216,24.99,2627.6,2627.1,2.85485]
[1723913591417,24.99,2627.6,2627.2,2.85474]
[1723913591729,24.99,2627.6,2627.5,2.85442]
[1723913592419,24.99,2627.6,2627.5,5.70884]
[1723913592945,24.99,2627.6,2627.5,8.56326]
[1723913593102,24.99,2627.6,2627.5,5.70884]
[1723913593305,24.99,2627.6,2627.4,2.85451]
[1723913593662,24.99,2627.6,2627.3,2.85461]
[1723913593954,24.99,2627.6,2626.4,2.85553]
[1723913593955,2.784412,2627.6,2626.4,2.85553]
[1723913594102,2.85326,2628.6,2626.4,2.85553]
[1723913594103,24.99,2627.3,2627.2,2.85475]
[1723913594304,2.85429,2627.7,2627.0,2.85486]
[1723913594532,2.85429,2627.7,2627.1,2.85479]
[1723913594849,2.85429,2627.7,2627.2,2.85473]
[1723913595067,2.85448,2627.5,2627.0,2.85486]
[1723913595342,2.85448,2627.5,2626.8,2.85511]
[1723913595343,2.85458,2627.4,2626.8,2.85517]
[1723913595542,2.85458,2627.4,2626.8,2.8551]
[1723913595543,2.8546,2627.4,2626.8,2.8551]
[1723913595714,2.8547,2627.3,2626.8,2.8551]
[1723913595923,3.140058,2627.4,2626.8,2.8551]
[1723913596165,3.140058,2627.4,2626.8,5.71022]
[1723913596303,3.140058,2627.4,2626.9,2.85506]
[1723913596507,24.99,2627.7,2627.0,2.85495]
[1723913596729,2.299,2628.1,2627.3,2.85458]
[1723913597006,2.85415,2627.8,2627.3,2.85458]
[1723913597227,2.85405,2627.9,2627.4,2.85452]
[1723913597746,3.014295,2628.0,2627.7,2.8542]
[1723913597959,2.85412,2627.8,2627.3,2.85455]
[1723913598111,3.139532,2627.8,2627.3,2.85455]
[1723913598444,0.285412,2627.8,2627.4,2.85451]
[1723913598748,2.85402,2627.9,2627.4,2.85451]
[1723913599109,2.85393,2628.0,2627.4,2.85451]
[1723913599409,2.85416,2627.8,2627.0,2.8549]
[1723913599611,2.85434,2627.6,2627.1,2.85485]
[1723913599958,2.85416,2627.8,2627.1,2.85485]
[1723913600124,3.4410753,2627.7,2627.1,2.85485]
[1723913600716,28.4310753,2627.7,2627.1,2.85485]
[1723913600946,28.4310753,2627.7,2627.2,2.85472]
[1723913601114,28.4310753,2627.7,2627.2,5.70941]
[1723913601331,28.4310753,2627.7,2627.2,2.85469]
[1723913601672,28.4310753,2627.7,2627.2,5.70938]
[1723913601867,28.4310753,2627.7,2627.2,2.85468]
[1723913603369,25.5768453,2627.7,2627.3,2.85458]
[1723913603940,24.99,2627.7,2627.4,2.85447]
[1723913604159,2.3898,2627.7,2627.0,2.85489]
[1723913604344,2.499,2627.6,2627.0,2.85495]
[1723913604539,30.23407,2627.7,2627.1,2.85485]
[1723913604742,30.23406,2627.7,2627.1,2.85485]
[1723913604940,2.85434,2627.6,2627.0,2.85495]
[1723913605177,5.877746,2627.6,2627.0,2.85488]
[1723913605475,30.23406,2627.7,2626.7,2.4219042]
[1723913605476,24.99,2627.7,2626.7,2.4219042]
[1723913605684,24.99,2628.0,2627.8,2.85409]
[1723913606171,24.99,2628.0,2627.9,5.70796]
[1723913607041,24.99,2628.0,2627.9,2.85398]
[1723913607470,24.99,2628.0,2627.7,2.8541]
[1723913608031,24.99,2628.0,2627.2,3.0]
[1723913608348,30.34289,2628.0,2627.5,2.85435]
[1723913608549,33.19683,2628.0,2627.5,2.85435]
[1723913608745,30.34289,2628.0,2627.5,2.85435]
[1723913608962,0.59385104,2627.9,2627.4,2.85451]
[1723913609171,2.8541,2627.8,2627.3,2.85457]
[1723913609383,6.4791941,2627.8,2627.3,2.85457]
[1723913609587,9.3333541,2627.8,2627.3,2.85457]
[1723913609739,6.4791941,2627.8,2627.3,2.85457]
[1723913609938,2.85426,2627.7,2627.1,2.85478]
[1723913610247,26.22874051,2627.7,2627.1,2.85478]
[1723913610444,26.22874051,2627.7,2627.3,2.85464]
[1723913612050,26.22874051,2627.7,2626.7,0.0203042]
[1723913612051,2.85454,2627.4,2626.7,0.0203042]
[1723913612267,27.8446,2627.4,2626.7,0.0203042]
[1723913612589,2.85475,2627.2,2626.7,0.0203042]
[1723913612796,24.99,2627.4,2627.0,2.85496]
[1723913612997,24.99,2627.4,2626.8,2.85509]
[1723913613297,27.84454,2627.4,2626.8,5.71021]
[1723913613585,24.99,2627.4,2626.9,2.85501]
[1723913613799,24.99,2627.4,2627.0,2.85496]
[1723913613987,24.99,2627.4,2627.1,2.85483]
[1723913614795,24.99,2627.4,2627.2,2.85473]
[1723913614994,27.84414,2627.8,2627.3,2.85456]
[1723913615843,30.69832,2627.8,2627.2,2.85474]
[1723913616061,30.6983,2627.8,2627.2,2.85474]
[1723913616754,30.62887317,2627.8,2627.3,2.85461]
[1723913617145,27.8441,2627.8,2627.3,2.85458]
[1723913617366,2.85432,2627.6,2627.0,2.85489]
[1723913618057,2.85432,2627.6,2627.0,5.70978]
[1723913618789,5.924219,2627.6,2627.0,2.85486]
[1723913619288,2.85448,2627.5,2627.0,2.85486]
[1723913619648,24.99,2627.8,2626.8,2.3092]
[1723913619848,24.99,2627.8,2627.3,2.85463]
[1723913620282,24.99,2627.8,2627.3,2.85456]
[1723913620477,24.99,2627.8,2627.3,0.285456]
[1723913620805,24.99,2627.8,2627.5,2.85435]
[1723913621009,24.99,2628.0,2627.6,2.85429]
[1723913621331,24.99,2628.0,2627.6,2.85425]
[1723913621478,24.99,2628.0,2627.6,5.70849]
[1723913621679,24.99,2628.0,2627.6,2.85424]
[1723913621882,24.99,2628.0,2627.4,5.70887]
[1723913622277,2.85401,2627.9,2627.4,5.70888]
[1723913622480,2.85401,2627.9,2627.4,5.70889]
[1723913622686,24.99,2628.0,2627.4,5.70889]
[1723913623009,24.99,2628.0,2627.5,2.85436]
[1723913623010,27.774379,2628.0,2627.5,2.85436]
[1723913623522,30.628269,2628.0,2627.5,2.85436]
[1723913623724,24.99,2628.0,2627.6,2.85425]
[1723913624029,24.99,2628.0,2627.8,2.85409]
[1723913624520,24.99,2628.0,2627.6,2.85423]
[1723913624717,24.99,2628.0,2627.6,5.70847]
[1723913624942,24.99,2628.0,2627.2,2.85472]
[1723913625147,24.99,2628.0,2627.9,5.70796]
[1723913625280,24.99,2628.2,2628.1,2.85377]
[1723913625480,24.99,2628.9,2628.4,2.85344]
[1723913625680,24.99,2628.9,2628.7,2.85305]
[1723913625915,24.99,2628.9,2628.8,2.85301]
[1723913627835,24.99,2628.9,2628.7,2.85304]
[1723913628037,24.99,2628.9,2628.5,2.85328]
[1723913628210,27.8429,2628.9,2628.3,2.85348]
[1723913628404,30.3419,2628.9,2628.3,2.85348]
[1723913628838,2.85302,2628.8,2628.3,2.85348]
[1723913629047,27.489,2628.9,2628.3,2.85345]
[1723913629358,24.99,2628.9,2628.5,2.85333]
[1723913630229,24.99,2628.9,2628.6,2.85322]
[1723913630528,24.99,2628.8,2628.6,2.85322]
[1723913630731,24.99,2628.8,2628.7,2.85312]
[1723913631236,24.99,2628.8,2628.5,2.85325]
[1723913632537,24.99,2628.8,2628.4,2.85338]
[1723913632538,26.24267767,2628.8,2628.4,2.85338]
[1723913632751,24.99,2628.8,2628.4,2.85338]
[1723913633554,24.99,2628.8,2628.3,2.85347]
[1723913633555,24.99,2628.8,2628.5,2.85332]
[1723913633764,24.99,2628.8,2628.3,2.85347]
[1723913633926,24.99,2628.8,2628.1,2.85369]
[1723913634266,24.99,2628.8,2628.5,2.85332]
[1723913634608,24.99,2628.8,2628.5,2.85328]
[1723913635333,24.99,2628.8,2628.5,5.70656]
[1723913635540,24.99,2628.8,2628.5,2.85327]
[1723913636061,24.99,2628.8,2628.6,2.85321]
[1723913636553,24.99,2629.0,2628.6,2.85321]
[1723913636975,24.99,2629.0,2628.3,2.85355]
[1723913637119,24.99,2629.0,2628.6,2.85314]
[1723913637457,24.99,2629.0,2628.7,2.8531]
[1723913638371,24.99,2629.0,2628.7,5.70616]
[1723913638520,24.99,2629.0,2628.7,5.70612]
[1723913638930,24.99,2629.0,2628.7,2.85306]
[1723913640335,24.99,2629.0,2628.7,5.70612]
[1723913640781,24.99,2629.0,2628.7,2.85306]
[1723913640965,24.99,2629.0,2628.1,2.85374]
[1723913641283,27.84282,2629.0,2628.4,2.85342]
[1723913641440,27.84282,2629.0,2628.2,3.0]
[1723913641441,2.85312,2628.7,2628.2,2.8536]
[1723913641635,2.85342,2628.5,2627.9,2.85398]
[1723913641839,2.85342,2628.5,2627.7,2.85419]
[1723913641840,2.85355,2628.3,2627.7,2.85411]
[1723913642049,2.85383,2628.1,2627.5,2.85431]
[1723913642252,2.85405,2627.9,2627.3,2.85457]
[1723913642478,2.85405,2627.9,2627.3,2.85458]
[1723913642681,2.85405,2627.9,2627.3,5.70916]
[1723913642867,2.85405,2627.9,2627.3,5.70915]
[1723913643260,5.923838,2627.9,2627.3,2.85457]
[1723913643455,2.85426,2627.7,2627.1,5.70959]
[1723913643654,2.85426,2627.7,2627.1,2.85479]
[1723913644073,5.16023,2627.6,2627.1,2.85479]
[1723913644403,5.16023,2627.6,2626.9,2.85501]
[1723913644404,2.85443,2627.5,2626.9,2.85501]
[1723913644548,27.84455,2627.4,2626.9,2.85501]
[1723913644748,30.69915,2627.4,2626.9,2.85501]